[Event "Titled Tuesday Blitz August 22 Late 2023"]
[White "WindWhistler11"]
[Black "Sailer, Mike"]
[BlackFideId "2012901"]
[WhiteElo "2470"]
[BlackElo "2222"]
[Result "1-0"]
[Round "2"]
[TimeControl "180+1"]
[Date "2023.08.22"]
[WhiteClock "0:00:34"]
[BlackClock "0:00:00"]
[Board "193"]

1. Nf3 {[%clk 0:02:54]}  e6 {[%clk 0:02:56]} 2. g3 {[%clk 0:02:52]}  f5 {[%clk 0:02:56]} 3. c4 {[%clk 0:02:52]}  Nf6 {[%clk 0:02:55]} 4. Bg2 {[%clk 0:02:53]}  Be7 {[%clk 0:02:55]} 5. O-O {[%clk 0:02:53]}  O-O {[%clk 0:02:55]} 6. Nc3 {[%clk 0:02:54]}  c6 {[%clk 0:02:46]} 7. d3 {[%clk 0:02:51]}  d5 {[%clk 0:02:46]} 8. cxd5 {[%clk 0:02:45]}  exd5 {[%clk 0:02:41]} 9. Qc2 {[%clk 0:02:40]}  h6 {[%clk 0:02:32]} 10. e4 {[%clk 0:02:33]}  fxe4 {[%clk 0:02:31]} 11. dxe4 {[%clk 0:02:33]}  Nxe4 {[%clk 0:02:27]} 12. Nxe4 {[%clk 0:02:33]}  dxe4 {[%clk 0:02:20]} 13. Qxe4 {[%clk 0:02:33]}  Bf5 {[%clk 0:02:20]} 14. Qc4+ {[%clk 0:02:33]}  Qd5 {[%clk 0:02:13]} 15. Qxd5+ {[%clk 0:02:24]}  cxd5 {[%clk 0:02:13]} 16. Nd4 {[%clk 0:02:24]}  Be4 {[%clk 0:02:11]} 17. Re1 {[%clk 0:01:57]}  Bxg2 {[%clk 0:02:00]} 18. Rxe7 {[%clk 0:01:52]}  Bh3 {[%clk 0:01:33]} 19. Rxb7 {[%clk 0:01:40]}  Nd7 {[%clk 0:01:27]} 20. Bf4 {[%clk 0:01:39]}  Nc5 {[%clk 0:01:23]} 21. Rb5 {[%clk 0:01:36]}  Nd3 {[%clk 0:01:17]} 22. Be3 {[%clk 0:01:36]}  Rab8 {[%clk 0:01:09]} 23. Rxb8 {[%clk 0:01:23]}  Rxb8 {[%clk 0:01:09]} 24. b3 {[%clk 0:01:21]}  Rc8 {[%clk 0:00:59]} 25. Rd1 {[%clk 0:01:18]}  Ne5 {[%clk 0:00:48]} 26. Rc1 {[%clk 0:01:06]}  Rxc1+ {[%clk 0:00:38]} 27. Bxc1 {[%clk 0:01:06]}  Nd3 {[%clk 0:00:34]} 28. Be3 {[%clk 0:01:03]}  Kf7 {[%clk 0:00:31]} 29. Nb5 {[%clk 0:01:00]}  a6 {[%clk 0:00:26]} 30. Nc7 {[%clk 0:01:00]}  Nb4 {[%clk 0:00:20]} 31. a3 {[%clk 0:00:57]}  Nc2 {[%clk 0:00:20]} 32. Nxd5 {[%clk 0:00:48]}  Nxa3 {[%clk 0:00:20]} 33. Nb4 {[%clk 0:00:48]}  a5 {[%clk 0:00:17]} 34. Nc6 {[%clk 0:00:48]}  Ke6 {[%clk 0:00:10]} 35. Nxa5 {[%clk 0:00:47]}  Kd5 {[%clk 0:00:10]} 36. f3 {[%clk 0:00:42]}  Nc2 {[%clk 0:00:10]} 37. Bc1 {[%clk 0:00:42]}  Kd4 {[%clk 0:00:08]} 38. Bb2+ {[%clk 0:00:41]}  Ke3 {[%clk 0:00:09]} 39. Bxg7 {[%clk 0:00:36]}  h5 {[%clk 0:00:05]} 40. Bh6+ {[%clk 0:00:30]}  Kxf3 {[%clk 0:00:05]} 41. Bd2 {[%clk 0:00:30]}  Ke2 {[%clk 0:00:02]} 42. Nc4 {[%clk 0:00:30]}  Na3 {[%clk 0:00:01]} 43. Nxa3 {[%clk 0:00:30]}  Kxd2 {[%clk 0:00:02]} 44. Nc4+ {[%clk 0:00:30]}  Kc3 {[%clk 0:00:02]} 45. Ne5 {[%clk 0:00:30]}  Kb4 {[%clk 0:00:03]} 46. Ng6 {[%clk 0:00:30]}  Kxb3 {[%clk 0:00:03]} 47. Nf4 {[%clk 0:00:30]}  Bg4 {[%clk 0:00:03]} 48. Kf2 {[%clk 0:00:31]}  Kc4 {[%clk 0:00:03]} 49. Ke3 {[%clk 0:00:31]}  Kc5 {[%clk 0:00:02]} 50. Ng6 {[%clk 0:00:30]}  Kd6 {[%clk 0:00:02]} 51. Kf4 {[%clk 0:00:31]}  Ke6 {[%clk 0:00:02]} 52. Kg5 {[%clk 0:00:31]}  Bd1 {[%clk 0:00:02]} 53. Nf4+ {[%clk 0:00:31]}  Kf7 {[%clk 0:00:02]} 54. Nxh5 {[%clk 0:00:32]}  Kg8 {[%clk 0:00:02]} 55. Nf4 {[%clk 0:00:33]}  Kh7 {[%clk 0:00:03]} 56. h4 {[%clk 0:00:33]}  Kg8 {[%clk 0:00:03]} 57. g4 {[%clk 0:00:33]}  Kh7 {[%clk 0:00:04]} 58. h5 {[%clk 0:00:34]}  Kg8 {[%clk 0:00:04]} 59. Ng6 {[%clk 0:00:35]}  Kg7 {[%clk 0:00:05]} 60. Nh4 {[%clk 0:00:35]}  Kg8 {[%clk 0:00:05]} 61. Nf5 {[%clk 0:00:36]}  Kh8 {[%clk 0:00:04]} 62. h6 {[%clk 0:00:36]}  Kh7 {[%clk 0:00:03]} 63. Nh4 {[%clk 0:00:35]}  Kg8 {[%clk 0:00:03]} 64. Ng6 {[%clk 0:00:33]}  Bxg4 {[%clk 0:00:01]} 65. Kxg4 {[%clk 0:00:32]}  Kh7 {[%clk 0:00:02]} 66. Kh5 {[%clk 0:00:33]}  Kg8 {[%clk 0:00:02]} 67. Kg5 {[%clk 0:00:33]}  Kh7 {[%clk 0:00:02]} 68. Ne5 {[%clk 0:00:33]}  Kg8 {[%clk 0:00:02]} 69. Kg6 {[%clk 0:00:32]}  Kh8 {[%clk 0:00:02]} 70. Nf7+ {[%clk 0:00:32]}  Kg8 {[%clk 0:00:02]} 71. h7+ {[%clk 0:00:33]}  Kf8 {[%clk 0:00:00]} 72. h8=Q+ {[%clk 0:00:34]} 1-0


[Site "https://www.chess.com"]

[Event "Titled Tuesday Blitz August 22 Late 2023"]
[White "Matute Escobar, Roxanny"]
[Black "Toropov, Pavel"]
[WhiteFideId "3926028"]
[BlackFideId "24129178"]
[WhiteElo "2217"]
[BlackElo "2469"]
[Result "0-1"]
[Round "2"]
[TimeControl "180+1"]
[Date "2023.08.22"]
[WhiteClock "0:00:13"]
[BlackClock "0:01:16"]
[Board "194"]

1. e4 {[%clk 0:03:00]}  e6 {[%clk 0:03:00]} 2. d4 {[%clk 0:03:00]}  d5 {[%clk 0:03:00]} 3. e5 {[%clk 0:03:00]}  c5 {[%clk 0:03:00]} 4. c3 {[%clk 0:03:01]}  Qb6 {[%clk 0:03:00]} 5. Nf3 {[%clk 0:03:00]}  Nc6 {[%clk 0:03:00]} 6. a3 {[%clk 0:02:58]}  Bd7 {[%clk 0:03:00]} 7. Be2 {[%clk 0:02:52]}  Rc8 {[%clk 0:02:59]} 8. O-O {[%clk 0:02:51]}  Nge7 {[%clk 0:02:51]} 9. dxc5 {[%clk 0:02:49]}  Qxc5 {[%clk 0:02:51]} 10. Be3 {[%clk 0:02:36]}  Qa5 {[%clk 0:02:51]} 11. b4 {[%clk 0:02:33]}  Qc7 {[%clk 0:02:50]} 12. Qd2 {[%clk 0:02:02]}  Ng6 {[%clk 0:02:43]} 13. a4 {[%clk 0:01:46]}  Ngxe5 {[%clk 0:02:37]} 14. Nxe5 {[%clk 0:01:47]}  Nxe5 {[%clk 0:02:37]} 15. Bd4 {[%clk 0:01:39]}  Bd6 {[%clk 0:02:29]} 16. g3 {[%clk 0:01:30]}  O-O {[%clk 0:02:28]} 17. Qg5 {[%clk 0:01:07]}  Ng6 {[%clk 0:02:14]} 18. Bd3 {[%clk 0:00:55]}  e5 {[%clk 0:02:13]} 19. Be3 {[%clk 0:00:49]}  Be6 {[%clk 0:02:07]} 20. Na3 {[%clk 0:00:35]}  a6 {[%clk 0:02:03]} 21. Qh5 {[%clk 0:00:33]}  Qxc3 {[%clk 0:01:58]} 22. Qe2 {[%clk 0:00:29]}  Qxb4 {[%clk 0:01:55]} 23. Rfb1 {[%clk 0:00:27]}  Qg4 {[%clk 0:01:51]} 24. Qxg4 {[%clk 0:00:26]}  Bxg4 {[%clk 0:01:51]} 25. Kg2 {[%clk 0:00:24]}  e4 {[%clk 0:01:50]} 26. Bf1 {[%clk 0:00:24]}  Bf3+ {[%clk 0:01:38]} 27. Kg1 {[%clk 0:00:24]}  Be5 {[%clk 0:01:35]} 28. Ra2 {[%clk 0:00:22]}  d4 {[%clk 0:01:35]} 29. Bd2 {[%clk 0:00:19]}  d3 {[%clk 0:01:23]} 30. Rc1 {[%clk 0:00:15]}  Rxc1 {[%clk 0:01:23]} 31. Bxc1 {[%clk 0:00:16]}  Rc8 {[%clk 0:01:22]} 32. Be3 {[%clk 0:00:17]}  Ne7 {[%clk 0:01:20]} 33. h4 {[%clk 0:00:17]}  Nd5 {[%clk 0:01:18]} 34. Bg2 {[%clk 0:00:17]}  Nc3 {[%clk 0:01:18]} 35. Rb2 {[%clk 0:00:13]}  Ne2+ {[%clk 0:01:16]} 0-1


[Site "https://www.chess.com"]

[Event "Titled Tuesday Blitz August 22 Late 2023"]
[White "Kiseljova, Marya"]
[Black "Moore, Nicholas"]
[WhiteFideId "4155009"]
[BlackFideId "4303709"]
[WhiteElo "2208"]
[BlackElo "2463"]
[Result "0-1"]
[Round "2"]
[TimeControl "180+1"]
[Date "2023.08.22"]
[WhiteClock "0:00:00"]
[BlackClock "0:00:22"]
[Board "196"]

1. d4 {[%clk 0:03:00]}  d5 {[%clk 0:02:58]} 2. c4 {[%clk 0:03:00]}  c6 {[%clk 0:02:59]} 3. Nf3 {[%clk 0:02:59]}  Nf6 {[%clk 0:02:59]} 4. g3 {[%clk 0:03:00]}  dxc4 {[%clk 0:02:58]} 5. Bg2 {[%clk 0:02:54]}  Bf5 {[%clk 0:02:56]} 6. Nh4 {[%clk 0:02:54]}  Be4 {[%clk 0:02:49]} 7. f3 {[%clk 0:02:51]}  Bg6 {[%clk 0:02:27]} 8. e4 {[%clk 0:02:37]}  Nbd7 {[%clk 0:02:19]} 9. O-O {[%clk 0:02:35]}  e5 {[%clk 0:02:18]} 10. Be3 {[%clk 0:02:13]}  exd4 {[%clk 0:02:05]} 11. Bxd4 {[%clk 0:02:10]}  Bc5 {[%clk 0:02:04]} 12. Kh1 {[%clk 0:02:01]}  O-O {[%clk 0:02:00]} 13. Na3 {[%clk 0:01:57]}  Bxa3 {[%clk 0:01:46]} 14. bxa3 {[%clk 0:01:57]}  Qe7 {[%clk 0:01:42]} 15. Qc2 {[%clk 0:01:43]}  b5 {[%clk 0:01:31]} 16. a4 {[%clk 0:01:42]}  a6 {[%clk 0:01:31]} 17. Bh3 {[%clk 0:01:27]}  Rfe8 {[%clk 0:01:17]} 18. Nxg6 {[%clk 0:01:09]}  hxg6 {[%clk 0:01:16]} 19. Rad1 {[%clk 0:01:06]}  Rad8 {[%clk 0:01:02]} 20. Bb2 {[%clk 0:00:47]}  Nb6 {[%clk 0:00:57]} 21. a5 {[%clk 0:00:40]}  Na4 {[%clk 0:00:56]} 22. Ba1 {[%clk 0:00:35]}  Rxd1 {[%clk 0:00:55]} 23. Rxd1 {[%clk 0:00:35]}  Rd8 {[%clk 0:00:56]} 24. Kg2 {[%clk 0:00:26]}  g5 {[%clk 0:00:48]} 25. Kf2 {[%clk 0:00:22]}  g4 {[%clk 0:00:47]} 26. Bf1 {[%clk 0:00:18]}  Rxd1 {[%clk 0:00:45]} 27. Qxd1 {[%clk 0:00:18]}  gxf3 {[%clk 0:00:46]} 28. Qxf3 {[%clk 0:00:18]}  Nxe4+ {[%clk 0:00:46]} 29. Kg2 {[%clk 0:00:17]}  c3 {[%clk 0:00:44]} 30. Bd3 {[%clk 0:00:16]}  Nac5 {[%clk 0:00:36]} 31. Qe2 {[%clk 0:00:10]}  b4 {[%clk 0:00:35]} 32. a3 {[%clk 0:00:10]}  Nxd3 {[%clk 0:00:36]} 33. Qxd3 {[%clk 0:00:10]}  c5 {[%clk 0:00:36]} 34. Qc4 {[%clk 0:00:08]}  Nd2 {[%clk 0:00:33]} 35. Qxa6 {[%clk 0:00:05]}  c2 {[%clk 0:00:31]} 36. Bb2 {[%clk 0:00:04]}  c4 {[%clk 0:00:27]} 37. Qc8+ {[%clk 0:00:03]}  Qf8 {[%clk 0:00:25]} 38. Qf5 {[%clk 0:00:00]}  b3 {[%clk 0:00:22]} 0-1


[Site "https://www.chess.com"]

[Event "Titled Tuesday Blitz August 22 Late 2023"]
[White "Hajiyev, Kanan"]
[Black "Vanek, Tomas"]
[WhiteFideId "13404148"]
[BlackFideId "313459"]
[WhiteElo "2459"]
[BlackElo "2205"]
[Result "1-0"]
[Round "2"]
[TimeControl "180+1"]
[Date "2023.08.22"]
[WhiteClock "0:01:39"]
[BlackClock "0:00:37"]
[Board "198"]

1. d4 {[%clk 0:03:00]}  f5 {[%clk 0:02:59]} 2. Nf3 {[%clk 0:03:01]}  Nf6 {[%clk 0:02:57]} 3. g3 {[%clk 0:03:02]}  g6 {[%clk 0:02:56]} 4. Bg2 {[%clk 0:03:03]}  Bg7 {[%clk 0:02:56]} 5. O-O {[%clk 0:03:04]}  O-O {[%clk 0:02:56]} 6. b3 {[%clk 0:03:05]}  c5 {[%clk 0:02:46]} 7. Bb2 {[%clk 0:03:06]}  Ne4 {[%clk 0:02:41]} 8. Nbd2 {[%clk 0:03:06]}  Nc6 {[%clk 0:02:37]} 9. e3 {[%clk 0:03:02]}  d5 {[%clk 0:02:34]} 10. Rb1 {[%clk 0:02:59]}  cxd4 {[%clk 0:02:16]} 11. Nxe4 {[%clk 0:02:57]}  dxe4 {[%clk 0:02:12]} 12. Nxd4 {[%clk 0:02:58]}  Nxd4 {[%clk 0:02:06]} 13. Bxd4 {[%clk 0:02:59]}  Bxd4 {[%clk 0:02:05]} 14. Qxd4 {[%clk 0:03:00]}  Qxd4 {[%clk 0:02:04]} 15. exd4 {[%clk 0:03:01]}  Rd8 {[%clk 0:02:00]} 16. Rfd1 {[%clk 0:02:54]}  b6 {[%clk 0:01:51]} 17. f3 {[%clk 0:02:55]}  Bb7 {[%clk 0:01:49]} 18. fxe4 {[%clk 0:02:54]}  fxe4 {[%clk 0:01:45]} 19. c4 {[%clk 0:02:45]}  e6 {[%clk 0:01:44]} 20. Rb2 {[%clk 0:02:39]}  Rd6 {[%clk 0:01:39]} 21. Re2 {[%clk 0:02:31]}  Rad8 {[%clk 0:01:38]} 22. Bxe4 {[%clk 0:02:31]}  Bxe4 {[%clk 0:01:34]} 23. Rxe4 {[%clk 0:02:31]}  Kf7 {[%clk 0:01:30]} 24. Kf2 {[%clk 0:02:31]}  e5 {[%clk 0:01:27]} 25. d5 {[%clk 0:02:24]}  Rf6+ {[%clk 0:01:22]} 26. Ke3 {[%clk 0:02:21]}  Re8 {[%clk 0:01:22]} 27. Rd2 {[%clk 0:02:17]}  Rf1 {[%clk 0:01:17]} 28. Rf2+ {[%clk 0:02:17]}  Rxf2 {[%clk 0:01:16]} 29. Kxf2 {[%clk 0:02:17]}  Kf6 {[%clk 0:01:16]} 30. g4 {[%clk 0:02:18]}  Kg5 {[%clk 0:01:16]} 31. Kg3 {[%clk 0:02:18]}  h6 {[%clk 0:01:12]} 32. h4+ {[%clk 0:02:18]}  Kf6 {[%clk 0:01:12]} 33. Kf3 {[%clk 0:02:09]}  g5 {[%clk 0:01:10]} 34. h5 {[%clk 0:02:08]}  Rf8 {[%clk 0:01:08]} 35. Ke3 {[%clk 0:02:06]}  Re8 {[%clk 0:01:04]} 36. b4 {[%clk 0:02:02]}  Re7 {[%clk 0:01:03]} 37. Kd3 {[%clk 0:01:57]}  Re8 {[%clk 0:01:02]} 38. c5 {[%clk 0:01:56]}  b5 {[%clk 0:01:02]} 39. a4 {[%clk 0:01:53]}  Rd8 {[%clk 0:01:00]} 40. axb5 {[%clk 0:01:45]}  Rxd5+ {[%clk 0:01:00]} 41. Kc4 {[%clk 0:01:46]}  Rd1 {[%clk 0:00:57]} 42. c6 {[%clk 0:01:45]}  Ke6 {[%clk 0:00:56]} 43. b6 {[%clk 0:01:46]}  axb6 {[%clk 0:00:56]} 44. Kb5 {[%clk 0:01:46]}  Kd5 {[%clk 0:00:55]} 45. Re2 {[%clk 0:01:44]}  Rc1 {[%clk 0:00:53]} 46. Rd2+ {[%clk 0:01:43]}  Ke6 {[%clk 0:00:53]} 47. Kxb6 {[%clk 0:01:43]}  Rc4 {[%clk 0:00:52]} 48. b5 {[%clk 0:01:42]}  Rxg4 {[%clk 0:00:52]} 49. Rc2 {[%clk 0:01:40]}  Rg2 {[%clk 0:00:37]} 50. Rxg2 {[%clk 0:01:39]} 1-0


[Site "https://www.chess.com"]

[Event "Titled Tuesday Blitz August 22 Late 2023"]
[White "Czerw, Dawid"]
[Black "Fernandez Siles, Luis"]
[WhiteFideId "1145746"]
[BlackFideId "2209420"]
[WhiteElo "2457"]
[BlackElo "2204"]
[Result "1-0"]
[Round "2"]
[TimeControl "180+1"]
[Date "2023.08.22"]
[WhiteClock "0:01:57"]
[BlackClock "0:01:26"]
[Board "199"]

1. e4 {[%clk 0:03:00]}  c5 {[%clk 0:02:59]} 2. Nf3 {[%clk 0:03:01]}  Nc6 {[%clk 0:02:59]} 3. d4 {[%clk 0:03:01]}  cxd4 {[%clk 0:02:59]} 4. Nxd4 {[%clk 0:03:02]}  Nf6 {[%clk 0:02:59]} 5. Nc3 {[%clk 0:03:03]}  e5 {[%clk 0:03:00]} 6. Ndb5 {[%clk 0:03:03]}  d6 {[%clk 0:03:01]} 7. Nd5 {[%clk 0:03:03]}  Nxd5 {[%clk 0:03:00]} 8. exd5 {[%clk 0:03:03]}  Nb8 {[%clk 0:03:01]} 9. Qf3 {[%clk 0:03:04]}  Be7 {[%clk 0:02:54]} 10. Qc3 {[%clk 0:03:01]}  Na6 {[%clk 0:02:53]} 11. Be3 {[%clk 0:03:01]}  O-O {[%clk 0:02:46]} 12. Nxa7 {[%clk 0:03:00]}  Bd7 {[%clk 0:02:40]} 13. Bxa6 {[%clk 0:02:57]}  bxa6 {[%clk 0:02:39]} 14. Nc6 {[%clk 0:02:58]}  Bxc6 {[%clk 0:02:35]} 15. dxc6 {[%clk 0:02:59]}  Qc7 {[%clk 0:02:34]} 16. O-O-O {[%clk 0:02:53]}  Rfc8 {[%clk 0:02:33]} 17. Rd5 {[%clk 0:02:48]}  Qxc6 {[%clk 0:02:33]} 18. Qxc6 {[%clk 0:02:48]}  Rxc6 {[%clk 0:02:32]} 19. b3 {[%clk 0:02:49]}  f5 {[%clk 0:02:30]} 20. f3 {[%clk 0:02:40]}  Kf7 {[%clk 0:02:30]} 21. Rhd1 {[%clk 0:02:39]}  Ke6 {[%clk 0:02:29]} 22. c4 {[%clk 0:02:40]}  g5 {[%clk 0:02:25]} 23. Kc2 {[%clk 0:02:38]}  h5 {[%clk 0:02:25]} 24. Bc1 {[%clk 0:02:36]}  g4 {[%clk 0:02:20]} 25. f4 {[%clk 0:02:26]}  Bf6 {[%clk 0:02:01]} 26. Ba3 {[%clk 0:02:24]}  Rd8 {[%clk 0:01:59]} 27. fxe5 {[%clk 0:02:24]}  Bxe5 {[%clk 0:01:59]} 28. Re1 {[%clk 0:02:16]}  h4 {[%clk 0:01:46]} 29. Rexe5+ {[%clk 0:02:15]}  dxe5 {[%clk 0:01:44]} 30. Rxd8 {[%clk 0:02:14]}  f4 {[%clk 0:01:43]} 31. Kd3 {[%clk 0:02:06]}  Rc7 {[%clk 0:01:32]} 32. Ke4 {[%clk 0:02:00]}  Rf7 {[%clk 0:01:26]} 33. Rd6+ {[%clk 0:01:57]} 1-0


[Site "https://www.chess.com"]

[Event "Titled Tuesday Blitz August 22 Late 2023"]
[White "Florianovitz, Derlei Alex"]
[Black "Liu, Casper"]
[WhiteFideId "2114178"]
[BlackFideId "1454153"]
[WhiteElo "2198"]
[BlackElo "2455"]
[Result "0-1"]
[Round "2"]
[TimeControl "180+1"]
[Date "2023.08.22"]
[WhiteClock "0:00:13"]
[BlackClock "0:00:29"]
[Board "200"]

1. e4 {[%clk 0:03:00]}  c5 {[%clk 0:02:57]} 2. Nf3 {[%clk 0:03:00]}  d6 {[%clk 0:02:58]} 3. d4 {[%clk 0:03:01]}  Nf6 {[%clk 0:02:58]} 4. Nc3 {[%clk 0:02:58]}  cxd4 {[%clk 0:02:59]} 5. Nxd4 {[%clk 0:02:58]}  Nc6 {[%clk 0:03:00]} 6. Bg5 {[%clk 0:02:52]}  Bd7 {[%clk 0:03:00]} 7. Nxc6 {[%clk 0:02:43]}  Bxc6 {[%clk 0:03:00]} 8. Bd3 {[%clk 0:02:43]}  Qa5 {[%clk 0:02:58]} 9. Bxf6 {[%clk 0:02:38]}  gxf6 {[%clk 0:02:59]} 10. Qd2 {[%clk 0:02:33]}  h5 {[%clk 0:02:57]} 11. O-O {[%clk 0:02:32]}  Bh6 {[%clk 0:02:55]} 12. Qe2 {[%clk 0:02:30]}  O-O-O {[%clk 0:02:53]} 13. Nd5 {[%clk 0:02:17]}  e6 {[%clk 0:02:32]} 14. b4 {[%clk 0:02:06]}  Qa3 {[%clk 0:02:27]} 15. b5 {[%clk 0:02:02]}  Bxd5 {[%clk 0:02:15]} 16. exd5 {[%clk 0:02:02]}  e5 {[%clk 0:01:52]} 17. Qf3 {[%clk 0:01:54]}  Qb4 {[%clk 0:01:35]} 18. Qxf6 {[%clk 0:01:47]}  Rdg8 {[%clk 0:01:30]} 19. c3 {[%clk 0:01:38]}  Qa4 {[%clk 0:01:13]} 20. Bf5+ {[%clk 0:01:26]}  Kb8 {[%clk 0:01:13]} 21. Qxd6+ {[%clk 0:01:27]}  Ka8 {[%clk 0:01:13]} 22. b6 {[%clk 0:01:13]}  Rxg2+ {[%clk 0:00:45]} 23. Kxg2 {[%clk 0:01:10]}  Qf4 {[%clk 0:00:46]} 24. Rfe1 {[%clk 0:00:25]}  Qxf5 {[%clk 0:00:29]} 25. Qxe5 {[%clk 0:00:16]}  Rg8+ {[%clk 0:00:28]} 26. Kf1 {[%clk 0:00:15]}  Qd3+ {[%clk 0:00:29]} 27. Qe2 {[%clk 0:00:13]}  Qh3# {[%clk 0:00:29]} 0-1


[Site "https://www.chess.com"]

[Event "Titled Tuesday Blitz August 22 Late 2023"]
[White "Nielsen, Viktor Haarmark"]
[Black "Erece, Ece Alkim"]
[WhiteFideId "1444492"]
[BlackFideId "6346006"]
[WhiteElo "2448"]
[BlackElo "2187"]
[Result "1-0"]
[Round "2"]
[TimeControl "180+1"]
[Date "2023.08.22"]
[WhiteClock "0:00:47"]
[BlackClock "0:00:00"]
[Board "203"]

1. e4 {[%clk 0:03:00]}  b6 {[%clk 0:02:55]} 2. d4 {[%clk 0:03:00]}  Bb7 {[%clk 0:02:55]} 3. Bd3 {[%clk 0:03:01]}  e6 {[%clk 0:02:54]} 4. Nc3 {[%clk 0:03:00]}  c5 {[%clk 0:02:55]} 5. d5 {[%clk 0:02:57]}  d6 {[%clk 0:02:50]} 6. Nf3 {[%clk 0:02:55]}  Nd7 {[%clk 0:02:46]} 7. Bc4 {[%clk 0:02:52]}  e5 {[%clk 0:02:44]} 8. a4 {[%clk 0:02:51]}  Be7 {[%clk 0:02:36]} 9. a5 {[%clk 0:02:46]}  Ngf6 {[%clk 0:02:24]} 10. O-O {[%clk 0:02:26]}  bxa5 {[%clk 0:02:20]} 11. Nd2 {[%clk 0:02:24]}  Nb6 {[%clk 0:02:20]} 12. Bb5+ {[%clk 0:02:22]}  Nfd7 {[%clk 0:02:19]} 13. Nb3 {[%clk 0:02:19]}  a6 {[%clk 0:02:18]} 14. Be2 {[%clk 0:02:07]}  a4 {[%clk 0:02:11]} 15. Na5 {[%clk 0:02:05]}  Qc8 {[%clk 0:02:05]} 16. Nxa4 {[%clk 0:01:55]}  Nxa4 {[%clk 0:02:03]} 17. Rxa4 {[%clk 0:01:56]}  Nb6 {[%clk 0:02:03]} 18. Ra3 {[%clk 0:01:56]}  f5 {[%clk 0:01:58]} 19. Nxb7 {[%clk 0:01:52]}  Qxb7 {[%clk 0:01:55]} 20. exf5 {[%clk 0:01:52]}  Qxd5 {[%clk 0:01:46]} 21. Qxd5 {[%clk 0:01:51]}  Nxd5 {[%clk 0:01:47]} 22. Bf3 {[%clk 0:01:51]}  Nb6 {[%clk 0:01:28]} 23. Bxa8 {[%clk 0:01:51]}  Nxa8 {[%clk 0:01:29]} 24. Rxa6 {[%clk 0:01:51]}  Nc7 {[%clk 0:01:30]} 25. Ra7 {[%clk 0:01:51]}  Kd7 {[%clk 0:01:29]} 26. Be3 {[%clk 0:01:50]}  Kc6 {[%clk 0:01:29]} 27. c4 {[%clk 0:01:44]}  Rf8 {[%clk 0:01:21]} 28. g4 {[%clk 0:01:44]}  Rb8 {[%clk 0:01:18]} 29. Rb1 {[%clk 0:01:40]}  Rb3 {[%clk 0:01:14]} 30. Kg2 {[%clk 0:01:38]}  e4 {[%clk 0:01:11]} 31. g5 {[%clk 0:01:35]}  d5 {[%clk 0:01:04]} 32. Bf4 {[%clk 0:01:18]}  Bd8 {[%clk 0:00:41]} 33. Bxc7 {[%clk 0:01:12]}  Bxc7 {[%clk 0:00:41]} 34. cxd5+ {[%clk 0:01:13]}  Kb6 {[%clk 0:00:40]} 35. Ra3 {[%clk 0:01:06]}  Rb4 {[%clk 0:00:36]} 36. f6 {[%clk 0:00:57]}  gxf6 {[%clk 0:00:31]} 37. gxf6 {[%clk 0:00:58]}  Rd4 {[%clk 0:00:11]} 38. f7 {[%clk 0:00:55]}  Bd6 {[%clk 0:00:11]} 39. Ra8 {[%clk 0:00:56]}  Rxd5 {[%clk 0:00:06]} 40. f8=Q {[%clk 0:00:56]}  Bxf8 {[%clk 0:00:05]} 41. Rxf8 {[%clk 0:00:55]}  Rd2 {[%clk 0:00:05]} 42. Re8 {[%clk 0:00:48]}  Re2 {[%clk 0:00:03]} 43. Kf1 {[%clk 0:00:47]}  Rc2 {[%clk 0:00:03]} 44. Rxe4 {[%clk 0:00:47]}  Kc6 {[%clk 0:00:00]} 45. b4 {[%clk 0:00:47]} 1-0


[Site "https://www.chess.com"]

[Event "Titled Tuesday Blitz August 22 Late 2023"]
[White "Ljukin, Sergei"]
[Black "Capp, Stephen"]
[WhiteFideId "14102200"]
[BlackFideId "2027089"]
[WhiteElo "2447"]
[BlackElo "2177"]
[Result "0-1"]
[Round "2"]
[TimeControl "180+1"]
[Date "2023.08.22"]
[WhiteClock "0:00:00"]
[BlackClock "0:00:04"]
[Board "205"]

1. e4 {[%clk 0:02:49]}  e5 {[%clk 0:02:59]} 2. Nf3 {[%clk 0:02:48]}  d5 {[%clk 0:02:59]} 3. exd5 {[%clk 0:02:47]}  Bd6 {[%clk 0:02:59]} 4. Nc3 {[%clk 0:02:46]}  Nf6 {[%clk 0:02:59]} 5. Bc4 {[%clk 0:02:44]}  O-O {[%clk 0:02:52]} 6. d3 {[%clk 0:02:43]}  h6 {[%clk 0:02:53]} 7. h3 {[%clk 0:02:41]}  Bf5 {[%clk 0:02:51]} 8. Be3 {[%clk 0:02:34]}  Nbd7 {[%clk 0:02:50]} 9. Qd2 {[%clk 0:02:32]}  Bg6 {[%clk 0:02:48]} 10. O-O-O {[%clk 0:02:24]}  Kh7 {[%clk 0:02:44]} 11. g4 {[%clk 0:02:23]}  Nb6 {[%clk 0:02:44]} 12. Bb3 {[%clk 0:02:17]}  Bb4 {[%clk 0:02:36]} 13. Bxb6 {[%clk 0:01:59]}  axb6 {[%clk 0:02:33]} 14. Nxe5 {[%clk 0:01:59]}  Nxd5 {[%clk 0:02:22]} 15. Bxd5 {[%clk 0:01:53]}  Bxc3 {[%clk 0:02:22]} 16. Qxc3 {[%clk 0:01:50]}  Qxd5 {[%clk 0:02:22]} 17. a3 {[%clk 0:01:46]}  c5 {[%clk 0:02:11]} 18. f4 {[%clk 0:01:45]}  f6 {[%clk 0:02:06]} 19. Nxg6 {[%clk 0:01:32]}  Kxg6 {[%clk 0:02:06]} 20. Rhe1 {[%clk 0:01:25]}  b5 {[%clk 0:02:04]} 21. f5+ {[%clk 0:01:07]}  Kh7 {[%clk 0:02:02]} 22. Qb3 {[%clk 0:01:03]}  Qxb3 {[%clk 0:01:45]} 23. cxb3 {[%clk 0:01:02]}  Rfe8 {[%clk 0:01:46]} 24. Kd2 {[%clk 0:01:02]}  Rad8 {[%clk 0:01:42]} 25. Rxe8 {[%clk 0:01:01]}  Rxe8 {[%clk 0:01:41]} 26. Re1 {[%clk 0:01:01]}  Rd8 {[%clk 0:01:37]} 27. Kc2 {[%clk 0:00:56]}  Rd4 {[%clk 0:01:31]} 28. Re4 {[%clk 0:00:49]}  Rd7 {[%clk 0:01:25]} 29. b4 {[%clk 0:00:48]}  b6 {[%clk 0:01:21]} 30. Kc3 {[%clk 0:00:45]}  h5 {[%clk 0:01:20]} 31. Re6 {[%clk 0:00:36]}  hxg4 {[%clk 0:01:19]} 32. Rxb6 {[%clk 0:00:34]}  gxh3 {[%clk 0:01:12]} 33. Re6 {[%clk 0:00:33]}  cxb4+ {[%clk 0:01:05]} 34. Kxb4 {[%clk 0:00:26]}  Rd4+ {[%clk 0:01:03]} 35. Kxb5 {[%clk 0:00:24]}  Rxd3 {[%clk 0:00:55]} 36. Re2 {[%clk 0:00:10]}  Kh6 {[%clk 0:00:47]} 37. a4 {[%clk 0:00:10]}  Kg5 {[%clk 0:00:47]} 38. a5 {[%clk 0:00:09]}  Kg4 {[%clk 0:00:46]} 39. a6 {[%clk 0:00:07]}  Rg3 {[%clk 0:00:41]} 40. a7 {[%clk 0:00:06]}  Rg2 {[%clk 0:00:36]} 41. a8=Q {[%clk 0:00:05]}  Rxe2 {[%clk 0:00:35]} 42. b4 {[%clk 0:00:05]}  h2 {[%clk 0:00:34]} 43. Qh1 {[%clk 0:00:04]}  Kg3 {[%clk 0:00:32]} 44. Kc4 {[%clk 0:00:04]}  Rg2 {[%clk 0:00:28]} 45. Qe1+ {[%clk 0:00:04]}  Rf2 {[%clk 0:00:23]} 46. b5 {[%clk 0:00:03]}  Kg2 {[%clk 0:00:22]} 47. Qe4+ {[%clk 0:00:03]}  Kg1 {[%clk 0:00:18]} 48. Qe1+ {[%clk 0:00:02]}  Kg2 {[%clk 0:00:17]} 49. Qe4+ {[%clk 0:00:02]}  Kg1 {[%clk 0:00:13]} 50. Qg4+ {[%clk 0:00:02]}  Rg2 {[%clk 0:00:13]} 51. Qd1+ {[%clk 0:00:01]}  Kf2 {[%clk 0:00:13]} 52. Qd2+ {[%clk 0:00:02]}  Kg3 {[%clk 0:00:13]} 53. Qe3+ {[%clk 0:00:02]}  Kh4 {[%clk 0:00:11]} 54. Qe1+ {[%clk 0:00:01]}  Kh3 {[%clk 0:00:07]} 55. Qf1 {[%clk 0:00:01]}  Kg3 {[%clk 0:00:05]} 56. Qe1+ {[%clk 0:00:00]}  Rf2 {[%clk 0:00:04]} 0-1


[Site "https://www.chess.com"]